[Event "Early-Titled-Tuesday-Blitz-February-06-2024"]
[Site "Chess.com"]
[Date "2024.02.06"]
[Round "1"]
[White "bolwin"]
[Black "sonicdravise"]
[Result "0-1"]
[WhiteElo "2283"]
[BlackElo "2616"]
[TimeControl "180+1"]
[EndTime "8:05:03 PST"]
[Termination "sonicdravise won by resignation"]

1. Nf3 {[%clk 0:03:00.1]} 1... g6 {[%clk 0:02:59.9]} 2. c4 {[%clk 0:03:01]} 2...
Bg7 {[%clk 0:02:59.9]} 3. d4 {[%clk 0:03:01.1]} 3... d6 {[%clk 0:02:59.2]} 4.
Nc3 {[%clk 0:03:00.9]} 4... e5 {[%clk 0:02:42.7]} 5. dxe5 {[%clk 0:02:47]} 5...
dxe5 {[%clk 0:02:41.9]} 6. Qxd8+ {[%clk 0:02:47.9]} 6... Kxd8 {[%clk 0:02:42.8]}
7. Bg5+ {[%clk 0:02:46.5]} 7... f6 {[%clk 0:02:40.6]} 8. O-O-O+ {[%clk
0:02:46.5]} 8... Nd7 {[%clk 0:02:39.5]} 9. Be3 {[%clk 0:02:38.3]} 9... c6 {[%clk
0:02:33.8]} 10. h4 {[%clk 0:02:35.5]} 10... Nh6 {[%clk 0:02:23.4]} 11. Bxh6
{[%clk 0:02:13.8]} 11... Bxh6+ {[%clk 0:02:23.4]} 12. e3 {[%clk 0:02:14.6]}
12... Ke7 {[%clk 0:02:13.9]} 13. h5 {[%clk 0:02:13.4]} 13... a5 {[%clk
0:02:02.9]} 14. hxg6 {[%clk 0:02:12.5]} 14... hxg6 {[%clk 0:02:03.8]} 15. Nh4
{[%clk 0:01:59.5]} 15... Kf7 {[%clk 0:01:54]} 16. Ne4 {[%clk 0:01:58.7]} 16...
Bf8 {[%clk 0:01:28.3]} 17. Nd6+ {[%clk 0:01:51.4]} 17... Bxd6 {[%clk 0:01:27.9]}
18. Rxd6 {[%clk 0:01:50.8]} 18... g5 {[%clk 0:01:23.9]} 19. g3 {[%clk
0:01:23.3]} 19... gxh4 {[%clk 0:01:23.7]} 20. gxh4 {[%clk 0:01:22.6]} 20... Nc5
{[%clk 0:01:23]} 0-1

[Event "Early-Titled-Tuesday-Blitz-February-06-2024"]
[Site "Chess.com"]
[Date "2024.02.06"]
[Round "1"]
[White "ArmanGhevondyanchess"]
[Black "crosky"]
[Result "1-0"]
[WhiteElo "2649"]
[BlackElo "2326"]
[TimeControl "180+1"]
[EndTime "8:05:04 PST"]
[Termination "ArmanGhevondyanchess won by resignation"]

1. Nf3 {[%clk 0:02:57.7]} 1... Nf6 {[%clk 0:02:59.4]} 2. d4 {[%clk 0:02:57.4]}
2... e6 {[%clk 0:02:59.4]} 3. g3 {[%clk 0:02:58]} 3... b5 {[%clk 0:02:59.4]} 4.
Bg2 {[%clk 0:02:58.9]} 4... Bb7 {[%clk 0:03:00.3]} 5. O-O {[%clk 0:02:59.8]}
5... c5 {[%clk 0:03:00.8]} 6. Na3 {[%clk 0:02:58.9]} 6... a6 {[%clk 0:02:58.8]}
7. c4 {[%clk 0:02:56.5]} 7... b4 {[%clk 0:02:54.6]} 8. Nc2 {[%clk 0:02:53.7]}
8... Be7 {[%clk 0:02:44.5]} 9. b3 {[%clk 0:02:52.8]} 9... cxd4 {[%clk 0:02:33]}
10. a3 {[%clk 0:02:47.2]} 10... a5 {[%clk 0:02:05.5]} 11. axb4 {[%clk 0:02:44]}
11... axb4 {[%clk 0:02:06.4]} 12. Rxa8 {[%clk 0:02:43.3]} 12... Bxa8 {[%clk
0:02:07.3]} 13. Ncxd4 {[%clk 0:02:40.8]} 13... Nc6 {[%clk 0:01:57.8]} 14. Nb5
{[%clk 0:02:39.2]} 14... d5 {[%clk 0:01:58.2]} 15. Qc2 {[%clk 0:02:29.3]} 15...
dxc4 {[%clk 0:01:51.3]} 16. bxc4 {[%clk 0:02:30.2]} 16... O-O {[%clk 0:01:51]}
17. Bb2 {[%clk 0:02:22.5]} 17... Qb6 {[%clk 0:01:44.8]} 18. Rd1 {[%clk
0:02:16.5]} 18... Na5 {[%clk 0:01:27.1]} 19. Bd4 {[%clk 0:02:00.6]} 19... Qc6
{[%clk 0:01:25.5]} 20. Rc1 {[%clk 0:01:54.4]} 20... Rc8 {[%clk 0:01:12.3]} 21.
Na7 {[%clk 0:01:52.9]} 21... b3 {[%clk 0:01:02.7]} 22. Qb1 {[%clk 0:01:52.6]}
22... Qa6 {[%clk 0:00:56.8]} 23. Nxc8 {[%clk 0:01:51.3]} 23... Qxc8 {[%clk
0:00:57.7]} 24. Bc3 {[%clk 0:01:48.3]} 24... Nxc4 {[%clk 0:00:49]} 25. Qxb3
{[%clk 0:01:41.4]} 25... Bd5 {[%clk 0:00:46.7]} 26. Bxf6 {[%clk 0:01:36.5]}
26... gxf6 {[%clk 0:00:41.7]} 27. e4 {[%clk 0:01:36.6]} 1-0

[Event "Early-Titled-Tuesday-Blitz-February-06-2024"]
[Site "Chess.com"]
[Date "2024.02.06"]
[Round "1"]
[White "AnaKuchava"]
[Black "nindjaxx8"]
[Result "0-1"]
[WhiteElo "2191"]
[BlackElo "2574"]
[TimeControl "180+1"]
[EndTime "8:05:09 PST"]
[Termination "nindjaxx8 won by resignation"]

1. d4 {[%clk 0:02:59.8]} 1... d5 {[%clk 0:02:59.9]} 2. Nf3 {[%clk 0:02:57.9]}
2... Nf6 {[%clk 0:02:59]} 3. c4 {[%clk 0:02:57.9]} 3... e6 {[%clk 0:02:51.6]} 4.
Nc3 {[%clk 0:02:55.8]} 4... Be7 {[%clk 0:02:50.2]} 5. Bg5 {[%clk 0:02:51.3]}
5... O-O {[%clk 0:02:48.7]} 6. e3 {[%clk 0:02:50.7]} 6... b6 {[%clk 0:02:45.7]}
7. Bd3 {[%clk 0:02:49.7]} 7... dxc4 {[%clk 0:02:26.4]} 8. Bxc4 {[%clk
0:02:50.6]} 8... Bb7 {[%clk 0:02:27]} 9. O-O {[%clk 0:02:49.3]} 9... h6 {[%clk
0:02:25.6]} 10. Bh4 {[%clk 0:02:40.4]} 10... Nbd7 {[%clk 0:02:24.8]} 11. Qe2
{[%clk 0:02:34.1]} 11... Ne4 {[%clk 0:02:19.5]} 12. Bg3 {[%clk 0:01:56.2]} 12...
Nxc3 {[%clk 0:02:17.8]} 13. bxc3 {[%clk 0:01:55.2]} 13... c5 {[%clk 0:02:18]}
14. Rfd1 {[%clk 0:01:51.1]} 14... cxd4 {[%clk 0:02:17.2]} 15. cxd4 {[%clk
0:01:47.6]} 15... Nf6 {[%clk 0:02:16.2]} 16. Rac1 {[%clk 0:01:47.2]} 16... a6
{[%clk 0:02:15.8]} 17. a4 {[%clk 0:01:40.5]} 17... Ne4 {[%clk 0:02:09.7]} 18.
Bf4 {[%clk 0:01:28.5]} 18... Qe8 {[%clk 0:02:08.4]} 19. Qb2 {[%clk 0:01:16]}
19... Qxa4 {[%clk 0:01:57.4]} 20. Qxb6 {[%clk 0:01:14.4]} 20... Bd5 {[%clk
0:01:57.4]} 21. Bxd5 {[%clk 0:01:04.8]} 21... exd5 {[%clk 0:01:58.3]} 22. Qb7
{[%clk 0:00:58.9]} 22... Bf6 {[%clk 0:01:51.1]} 23. Qxd5 {[%clk 0:00:57.1]}
23... Nc3 {[%clk 0:01:51.1]} 0-1

[Event "Early-Titled-Tuesday-Blitz-February-06-2024"]
[Site "Chess.com"]
[Date "2024.02.06"]
[Round "1"]
[White "amanjazu"]
[Black "Nikolakis2014"]
[Result "1-0"]
[WhiteElo "2433"]
[BlackElo "2733"]
[TimeControl "180+1"]
[EndTime "8:05:10 PST"]
[Termination "amanjazu won by resignation"]

1. g3 {[%clk 0:03:00.9]} 1... Nf6 {[%clk 0:02:57.8]} 2. Bg2 {[%clk 0:03:01.8]}
2... d5 {[%clk 0:02:57.6]} 3. f4 {[%clk 0:03:02.3]} 3... e6 {[%clk 0:02:57.6]}
4. Nf3 {[%clk 0:03:02.8]} 4... c5 {[%clk 0:02:57.6]} 5. O-O {[%clk 0:03:03.7]}
5... Nc6 {[%clk 0:02:57.6]} 6. d3 {[%clk 0:03:04.6]} 6... g6 {[%clk 0:02:57.2]}
7. Nc3 {[%clk 0:03:05]} 7... Bg7 {[%clk 0:02:57.4]} 8. e4 {[%clk 0:03:05.5]}
8... O-O {[%clk 0:02:50.4]} 9. h3 {[%clk 0:02:59.9]} 9... b6 {[%clk 0:02:48.9]}
10. Kh2 {[%clk 0:02:59.7]} 10... dxe4 {[%clk 0:02:45]} 11. dxe4 {[%clk
0:02:59.5]} 11... Ba6 {[%clk 0:02:45.1]} 12. Re1 {[%clk 0:02:53.4]} 12... Qxd1
{[%clk 0:02:39.7]} 13. Rxd1 {[%clk 0:02:48.3]} 13... Rad8 {[%clk 0:02:39]} 14.
Be3 {[%clk 0:02:43.8]} 14... Nb4 {[%clk 0:02:33.1]} 15. Ne1 {[%clk 0:02:41.1]}
15... Bb7 {[%clk 0:02:15.1]} 16. a3 {[%clk 0:02:40.2]} 16... Nc6 {[%clk
0:02:15.3]} 17. e5 {[%clk 0:02:39.2]} 17... Nd7 {[%clk 0:02:06.3]} 18. Nb5
{[%clk 0:02:34.9]} 18... a6 {[%clk 0:02:05.9]} 19. Nd6 {[%clk 0:02:30.5]} 19...
Ba8 {[%clk 0:02:06]} 20. Bf1 {[%clk 0:02:28.6]} 20... b5 {[%clk 0:01:50.1]} 21.
a4 {[%clk 0:02:20.9]} 21... Nd4 {[%clk 0:01:50.2]} 22. axb5 {[%clk 0:02:14.8]}
22... axb5 {[%clk 0:01:50.1]} 23. Bxd4 {[%clk 0:02:10.5]} 23... cxd4 {[%clk
0:01:49.7]} 24. Bxb5 {[%clk 0:02:10.9]} 24... f6 {[%clk 0:01:45.2]} 25. Rxa8
{[%clk 0:02:08.9]} 25... Rxa8 {[%clk 0:01:42.2]} 26. Bxd7 {[%clk 0:02:08.8]}
26... fxe5 {[%clk 0:01:42.4]} 27. Bxe6+ {[%clk 0:02:08.4]} 27... Kh8 {[%clk
0:01:42.7]} 28. fxe5 {[%clk 0:02:06.6]} 28... h6 {[%clk 0:01:41.7]} 29. Nd3
{[%clk 0:02:00.8]} 29... Ra7 {[%clk 0:01:27.4]} 30. Re1 {[%clk 0:01:53]} 30...
Rc7 {[%clk 0:01:25]} 31. Bb3 {[%clk 0:01:52.1]} 31... Rf3 {[%clk 0:01:08.8]} 32.
Kg2 {[%clk 0:01:38.1]} 32... Rf8 {[%clk 0:01:07.8]} 33. e6 {[%clk 0:01:35.7]}
33... Re7 {[%clk 0:01:07.2]} 34. Nf4 {[%clk 0:01:34.6]} 34... Kh7 {[%clk
0:01:05.2]} 35. Nd5 {[%clk 0:01:32.7]} 1-0

[Event "Early-Titled-Tuesday-Blitz-February-06-2024"]
[Site "Chess.com"]
[Date "2024.02.06"]
[Round "1"]
[White "Kildepiotr"]
[Black "alekroth65"]
[Result "1-0"]
[WhiteElo "2687"]
[BlackElo "2370"]
[TimeControl "180+1"]
[EndTime "8:05:11 PST"]
[Termination "Kildepiotr won by resignation"]

1. Nf3 {[%clk 0:03:00.9]} 1... d5 {[%clk 0:02:58.1]} 2. g3 {[%clk 0:03:01]} 2...
Nf6 {[%clk 0:02:56.2]} 3. Bg2 {[%clk 0:03:01.2]} 3... e6 {[%clk 0:02:55.7]} 4.
O-O {[%clk 0:03:01.2]} 4... Be7 {[%clk 0:02:53.7]} 5. d3 {[%clk 0:03:00.6]} 5...
O-O {[%clk 0:02:44.2]} 6. Nbd2 {[%clk 0:03:00.4]} 6... b6 {[%clk 0:02:40.9]} 7.
e4 {[%clk 0:03:00.1]} 7... dxe4 {[%clk 0:02:33.9]} 8. dxe4 {[%clk 0:03:01]} 8...
Ba6 {[%clk 0:02:31.6]} 9. Re1 {[%clk 0:03:01.2]} 9... Nbd7 {[%clk 0:02:24.4]}
10. e5 {[%clk 0:02:39.3]} 10... Nd5 {[%clk 0:02:22.2]} 11. Nd4 {[%clk
0:02:39.2]} 11... Bc5 {[%clk 0:01:50.1]} 12. N2b3 {[%clk 0:02:26.3]} 12... Bxd4
{[%clk 0:01:45.9]} 13. Nxd4 {[%clk 0:02:26.1]} 13... c5 {[%clk 0:01:44.4]} 14.
Nc6 {[%clk 0:02:01.3]} 14... Qe8 {[%clk 0:01:27.7]} 15. Bxd5 {[%clk 0:01:44.8]}
15... exd5 {[%clk 0:01:25.1]} 16. Qxd5 {[%clk 0:01:45.7]} 16... Nf6 {[%clk
0:01:02.9]} 17. Qd6 {[%clk 0:01:27.1]} 17... Ng4 {[%clk 0:00:53]} 18. h3 {[%clk
0:01:13]} 18... Nh6 {[%clk 0:00:45.9]} 19. Bxh6 {[%clk 0:01:12.6]} 19... gxh6
{[%clk 0:00:46.4]} 20. Ne7+ {[%clk 0:01:09.9]} 1-0

[Event "Early-Titled-Tuesday-Blitz-February-06-2024"]
[Site "Chess.com"]
[Date "2024.02.06"]
[Round "1"]
[White "YoreDea"]
[Black "HelvertHernandez"]
[Result "1-0"]
[WhiteElo "2535"]
[BlackElo "1926"]
[TimeControl "180+1"]
[EndTime "8:05:11 PST"]
[Termination "YoreDea won by resignation"]

1. e4 {[%clk 0:02:57.1]} 1... c5 {[%clk 0:02:58.3]} 2. Be2 {[%clk 0:02:56.4]}
2... Nc6 {[%clk 0:02:57.8]} 3. f4 {[%clk 0:02:56.5]} 3... d6 {[%clk 0:02:52.4]}
4. Nf3 {[%clk 0:02:56.3]} 4... g6 {[%clk 0:02:49.8]} 5. c3 {[%clk 0:02:55.7]}
5... Bg7 {[%clk 0:02:48.1]} 6. O-O {[%clk 0:02:54.6]} 6... Bg4 {[%clk
0:02:42.8]} 7. Kh1 {[%clk 0:02:51.3]} 7... e6 {[%clk 0:02:41.2]} 8. d3 {[%clk
0:02:49.4]} 8... Nge7 {[%clk 0:02:40.2]} 9. Be3 {[%clk 0:02:49.7]} 9... O-O
{[%clk 0:02:38.1]} 10. Nbd2 {[%clk 0:02:49.9]} 10... a6 {[%clk 0:02:35.9]} 11.
d4 {[%clk 0:02:49.3]} 11... cxd4 {[%clk 0:02:27]} 12. cxd4 {[%clk 0:02:49.3]}
12... d5 {[%clk 0:02:25.2]} 13. e5 {[%clk 0:02:47.9]} 13... Nf5 {[%clk
0:02:23.7]} 14. Bf2 {[%clk 0:02:46.5]} 14... Qa5 {[%clk 0:02:20.3]} 15. Nb3
{[%clk 0:02:42.1]} 15... Qb6 {[%clk 0:02:18.4]} 16. h3 {[%clk 0:02:34.2]} 16...
Bxf3 {[%clk 0:02:16.7]} 17. Bxf3 {[%clk 0:02:35.1]} 17... a5 {[%clk 0:02:05]}
18. g4 {[%clk 0:02:34.5]} 18... Nfe7 {[%clk 0:01:50.2]} 19. a4 {[%clk
0:02:22.4]} 19... f6 {[%clk 0:01:45.7]} 20. Nc5 {[%clk 0:02:07]} 20... fxe5
{[%clk 0:01:38.5]} 21. dxe5 {[%clk 0:02:07.1]} 21... Rxf4 {[%clk 0:01:28.1]} 22.
Nxe6 {[%clk 0:02:06.6]} 22... Rxf3 {[%clk 0:01:15.4]} 23. Bxb6 {[%clk
0:02:04.6]} 23... Rxf1+ {[%clk 0:00:49.1]} 24. Qxf1 {[%clk 0:02:02.4]} 24...
Bxe5 {[%clk 0:00:47.4]} 25. Re1 {[%clk 0:01:54.2]} 25... g5 {[%clk 0:00:40.2]}
26. b3 {[%clk 0:01:51]} 26... Ng6 {[%clk 0:00:38.9]} 27. Rxe5 {[%clk 0:01:47.3]}
27... Ncxe5 {[%clk 0:00:35.3]} 28. Qf6 {[%clk 0:01:45.9]} 1-0

[Event "Early-Titled-Tuesday-Blitz-February-06-2024"]
[Site "Chess.com"]
[Date "2024.02.06"]
[Round "1"]
[White "Sanan_Sjugirov"]
[Black "EvilMorty23"]
[Result "1-0"]
[WhiteElo "3006"]
[BlackElo "2511"]
[TimeControl "180+1"]
[EndTime "8:05:16 PST"]
[Termination "Sanan_Sjugirov won by resignation"]

1. e4 {[%clk 0:03:00.9]} 1... e6 {[%clk 0:02:58.4]} 2. d4 {[%clk 0:03:00.6]}
2... d5 {[%clk 0:02:58.1]} 3. e5 {[%clk 0:02:59.7]} 3... c5 {[%clk 0:02:55.2]}
4. c3 {[%clk 0:03:00.3]} 4... Nc6 {[%clk 0:02:48]} 5. Nf3 {[%clk 0:03:00.6]}
5... Qb6 {[%clk 0:02:41.1]} 6. a3 {[%clk 0:03:00.1]} 6... Nh6 {[%clk 0:02:36.1]}
7. b4 {[%clk 0:02:59.2]} 7... cxd4 {[%clk 0:02:36.3]} 8. cxd4 {[%clk 0:02:59.7]}
8... Nf5 {[%clk 0:02:36]} 9. Bb2 {[%clk 0:02:55.5]} 9... Be7 {[%clk 0:02:32]}
10. Bd3 {[%clk 0:02:48.4]} 10... Bd7 {[%clk 0:02:22.9]} 11. Bxf5 {[%clk
0:02:46.7]} 11... exf5 {[%clk 0:02:23.8]} 12. O-O {[%clk 0:02:44]} 12... h6
{[%clk 0:02:23.3]} 13. Nc3 {[%clk 0:02:43.6]} 13... Be6 {[%clk 0:02:23.4]} 14.
Na4 {[%clk 0:02:43.6]} 14... Qd8 {[%clk 0:02:17.7]} 15. Nc5 {[%clk 0:02:43.2]}
15... b6 {[%clk 0:02:12.7]} 16. Nxe6 {[%clk 0:01:48.8]} 16... fxe6 {[%clk
0:02:13.6]} 17. Ne1 {[%clk 0:01:46.9]} 17... f4 {[%clk 0:02:08]} 18. Qh5+ {[%clk
0:01:44.9]} 18... Kd7 {[%clk 0:02:08.3]} 19. Nd3 {[%clk 0:01:40.7]} 19... g5
{[%clk 0:02:03.3]} 20. Rac1 {[%clk 0:01:38.4]} 20... Rc8 {[%clk 0:01:58.1]} 21.
Qd1 {[%clk 0:01:29.8]} 21... Ke8 {[%clk 0:01:53.1]} 22. Qh5+ {[%clk 0:01:25.9]}
22... Kd7 {[%clk 0:01:53.1]} 23. Rc2 {[%clk 0:01:12]} 23... Qe8 {[%clk
0:01:31.9]} 24. Qe2 {[%clk 0:01:10.3]} 24... Nb8 {[%clk 0:01:05.4]} 25. Rfc1
{[%clk 0:01:08.4]} 25... Rxc2 {[%clk 0:00:58.8]} 26. Qxc2 {[%clk 0:01:09.3]}
26... Qd8 {[%clk 0:00:55.6]} 27. Qa4+ {[%clk 0:01:08.5]} 1-0

[Event "Early-Titled-Tuesday-Blitz-February-06-2024"]
[Site "Chess.com"]
[Date "2024.02.06"]
[Round "1"]
[White "MattyDPerrine"]
[Black "AryanTari"]
[Result "0-1"]
[WhiteElo "2502"]
[BlackElo "2950"]
[TimeControl "180+1"]
[EndTime "8:05:20 PST"]
[Termination "AryanTari won by resignation"]

1. e4 {[%clk 0:03:00.9]} 1... e5 {[%clk 0:02:57.8]} 2. Nf3 {[%clk 0:03:01.1]}
2... Nc6 {[%clk 0:02:57.3]} 3. d4 {[%clk 0:02:58.9]} 3... exd4 {[%clk
0:02:52.8]} 4. Nxd4 {[%clk 0:02:59.8]} 4... Bc5 {[%clk 0:02:47]} 5. Nb3 {[%clk
0:02:59.7]} 5... Bb6 {[%clk 0:02:46.6]} 6. Nc3 {[%clk 0:03:00]} 6... d6 {[%clk
0:02:46]} 7. Bf4 {[%clk 0:02:59.5]} 7... Nge7 {[%clk 0:02:40.8]} 8. Qd2 {[%clk
0:02:55.4]} 8... O-O {[%clk 0:02:33.5]} 9. O-O-O {[%clk 0:02:55.5]} 9... a5
{[%clk 0:02:33.1]} 10. a4 {[%clk 0:02:52.4]} 10... Be6 {[%clk 0:02:32.9]} 11.
Nd5 {[%clk 0:02:52.2]} 11... Ba7 {[%clk 0:02:26.9]} 12. Bc4 {[%clk 0:02:35.7]}
12... Ng6 {[%clk 0:02:23.5]} 13. Bg5 {[%clk 0:02:21.4]} 13... Qd7 {[%clk
0:02:23.7]} 14. f4 {[%clk 0:02:20.8]} 14... Bxd5 {[%clk 0:01:56.7]} 15. exd5
{[%clk 0:02:11.2]} 15... Nb4 {[%clk 0:01:54.3]} 16. Bb5 {[%clk 0:01:50.4]} 16...
c6 {[%clk 0:01:54.3]} 17. dxc6 {[%clk 0:01:50.9]} 17... bxc6 {[%clk 0:01:54.6]}
18. Qxd6 {[%clk 0:00:36.2]} 18... Qxd6 {[%clk 0:01:52.5]} 19. Rxd6 {[%clk
0:00:37.1]} 19... cxb5 {[%clk 0:01:52.3]} 20. f5 {[%clk 0:00:24]} 20... bxa4
{[%clk 0:01:48.5]} 21. Nxa5 {[%clk 0:00:18.4]} 21... Bc5 {[%clk 0:01:42]} 22.
Rdd1 {[%clk 0:00:09.1]} 22... Rxa5 {[%clk 0:01:37.3]} 23. fxg6 {[%clk
0:00:08.9]} 23... fxg6 {[%clk 0:01:37.6]} 0-1

[Event "Early-Titled-Tuesday-Blitz-February-06-2024"]
[Site "Chess.com"]
[Date "2024.02.06"]
[Round "1"]
[White "paladin_ll"]
[Black "Mesa_1"]
[Result "1-0"]
[WhiteElo "2170"]
[BlackElo "2549"]
[TimeControl "180+1"]
[EndTime "8:05:25 PST"]
[Termination "paladin_ll won by resignation"]

1. Nf3 {[%clk 0:03:00.2]} 1... d5 {[%clk 0:02:59.7]} 2. c4 {[%clk 0:02:58.9]}
2... d4 {[%clk 0:02:36.1]} 3. d3 {[%clk 0:02:58.1]} 3... c5 {[%clk 0:02:35.4]}
4. b4 {[%clk 0:02:58.1]} 4... Nf6 {[%clk 0:02:26.6]} 5. bxc5 {[%clk 0:02:55.1]}
5... Nc6 {[%clk 0:02:27.3]} 6. g3 {[%clk 0:02:54.8]} 6... e5 {[%clk 0:02:27.6]}
7. Ba3 {[%clk 0:02:54.2]} 7... e4 {[%clk 0:01:50.1]} 8. dxe4 {[%clk 0:02:44.1]}
8... Nxe4 {[%clk 0:01:51]} 9. Bg2 {[%clk 0:02:42.4]} 9... Qa5+ {[%clk
0:01:51.6]} 10. Nfd2 {[%clk 0:02:40.8]} 10... Nc3 {[%clk 0:01:49.6]} 11. Qb3
{[%clk 0:02:35.4]} 11... Nxb1 {[%clk 0:01:34.5]} 12. Rxb1 {[%clk 0:02:27.8]}
12... Bxc5 {[%clk 0:01:35]} 13. Bxc5 {[%clk 0:02:27]} 13... Qxc5 {[%clk
0:01:35.9]} 14. Qb5 {[%clk 0:02:14.4]} 14... Qxb5 {[%clk 0:01:35.9]} 15. cxb5
{[%clk 0:02:07.9]} 15... Ne7 {[%clk 0:01:28.4]} 16. Nb3 {[%clk 0:02:03.1]} 16...
Nf5 {[%clk 0:01:29.1]} 17. Rd1 {[%clk 0:01:57.3]} 17... O-O {[%clk 0:01:29.7]}
18. Nxd4 {[%clk 0:01:56.2]} 18... Nxd4 {[%clk 0:01:30.6]} 19. Rxd4 {[%clk
0:01:56.1]} 19... Be6 {[%clk 0:01:31.5]} 20. a4 {[%clk 0:01:51.5]} 20... Rad8
{[%clk 0:01:28.9]} 21. Rxd8 {[%clk 0:01:49.4]} 21... Rxd8 {[%clk 0:01:29.8]} 22.
O-O {[%clk 0:01:44.8]} 22... Rd4 {[%clk 0:01:29]} 23. Bxb7 {[%clk 0:01:40.8]}
23... Rxa4 {[%clk 0:01:28.7]} 24. Rc1 {[%clk 0:01:29.6]} 24... g6 {[%clk
0:01:28.5]} 25. f3 {[%clk 0:01:28.2]} 25... Rb4 {[%clk 0:01:28.1]} 26. Ba6
{[%clk 0:01:24.4]} 26... Bc4 {[%clk 0:01:25.5]} 27. Kf2 {[%clk 0:01:18.8]} 27...
Bxb5 {[%clk 0:01:23.4]} 28. Rc8+ {[%clk 0:01:15.4]} 28... Kg7 {[%clk 0:01:16.8]}
29. Rb8 {[%clk 0:01:15.2]} 29... Ra4 {[%clk 0:01:10.8]} 30. Bxb5 {[%clk
0:01:13.4]} 30... Rb4 {[%clk 0:01:11.5]} 31. Rb7 {[%clk 0:01:10]} 31... a5
{[%clk 0:01:12.1]} 32. Bc6 {[%clk 0:01:09.7]} 32... Rc4 {[%clk 0:01:12.6]} 33.
Bd5 {[%clk 0:01:04.6]} 1-0

[Event "Early-Titled-Tuesday-Blitz-February-06-2024"]
[Site "Chess.com"]
[Date "2024.02.06"]
[Round "1"]
[White "Alexander_Donchenko"]
[Black "Manukyan_Artak"]
[Result "1-0"]
[WhiteElo "2931"]
[BlackElo "2500"]
[TimeControl "180+1"]
[EndTime "8:05:28 PST"]
[Termination "Alexander_Donchenko won by resignation"]

1. c4 {[%clk 0:03:00.9]} 1... g6 {[%clk 0:02:58.5]} 2. g3 {[%clk 0:02:59.9]}
2... h5 {[%clk 0:02:57.7]} 3. Nf3 {[%clk 0:02:59.6]} 3... d6 {[%clk 0:02:55.6]}
4. Nc3 {[%clk 0:02:58.7]} 4... e5 {[%clk 0:02:53.6]} 5. d4 {[%clk 0:02:58.6]}
5... Nc6 {[%clk 0:02:50.7]} 6. dxe5 {[%clk 0:02:58.3]} 6... Nxe5 {[%clk
0:02:44.3]} 7. Nxe5 {[%clk 0:02:58.2]} 7... dxe5 {[%clk 0:02:45.2]} 8. Qxd8+
{[%clk 0:02:58.2]} 8... Kxd8 {[%clk 0:02:44.9]} 9. Bg2 {[%clk 0:02:58.6]} 9...
c6 {[%clk 0:02:44.5]} 10. b3 {[%clk 0:02:48.3]} 10... Bg7 {[%clk 0:02:33.4]} 11.
Ba3 {[%clk 0:02:46.4]} 11... Nf6 {[%clk 0:02:25.9]} 12. O-O-O+ {[%clk 0:02:44]}
12... Ke8 {[%clk 0:02:25.5]} 13. h3 {[%clk 0:02:40.1]} 13... Be6 {[%clk
0:02:19.6]} 14. Bd6 {[%clk 0:02:30.7]} 14... Nd7 {[%clk 0:02:10.5]} 15. Ne4
{[%clk 0:02:29.8]} 15... f5 {[%clk 0:01:56.6]} 16. Ng5 {[%clk 0:02:28.9]} 16...
Bh6 {[%clk 0:01:47]} 17. h4 {[%clk 0:02:27.6]} 17... Bxg5+ {[%clk 0:01:34.3]}
18. hxg5 {[%clk 0:02:28.5]} 18... Kf7 {[%clk 0:01:34.7]} 19. e4 {[%clk
0:02:09.2]} 19... fxe4 {[%clk 0:01:16.3]} 20. Bxe4 {[%clk 0:02:10.1]} 20... Bf5
{[%clk 0:01:16.6]} 21. Bxf5 {[%clk 0:01:47.4]} 21... gxf5 {[%clk 0:01:17.5]} 22.
Bc7 {[%clk 0:01:47.7]} 22... Nc5 {[%clk 0:01:07]} 23. Bxe5 {[%clk 0:01:43.8]}
23... Rhd8 {[%clk 0:01:04]} 24. Bd4 {[%clk 0:01:30.2]} 24... Ne6 {[%clk
0:00:59.9]} 25. Be3 {[%clk 0:01:28.1]} 25... Rxd1+ {[%clk 0:00:57]} 26. Rxd1
{[%clk 0:01:29]} 26... Ke7 {[%clk 0:00:43.2]} 27. Rh1 {[%clk 0:01:27.2]} 1-0

[Event "Early-Titled-Tuesday-Blitz-February-06-2024"]
[Site "Chess.com"]
[Date "2024.02.06"]
[Round "1"]
[White "FREDERICKtheMATE"]
[Black "flomarechot"]
[Result "1-0"]
[WhiteElo "2635"]
[BlackElo "2310"]
[TimeControl "180+1"]
[EndTime "8:05:28 PST"]
[Termination "FREDERICKtheMATE won by resignation"]

1. Nf3 {[%clk 0:03:00.9]} 1... Nf6 {[%clk 0:02:57.2]} 2. d4 {[%clk 0:03:00.5]}
2... d6 {[%clk 0:02:57.5]} 3. c4 {[%clk 0:02:59.7]} 3... g6 {[%clk 0:02:56.9]}
4. Nc3 {[%clk 0:02:59.9]} 4... Bf5 {[%clk 0:02:57.4]} 5. Qb3 {[%clk 0:02:55.7]}
5... b6 {[%clk 0:02:20.7]} 6. g3 {[%clk 0:02:54.9]} 6... Ne4 {[%clk 0:02:20.6]}
7. Bg2 {[%clk 0:02:53.9]} 7... Nxc3 {[%clk 0:02:20.4]} 8. Qxc3 {[%clk
0:02:54.1]} 8... Be4 {[%clk 0:02:20.8]} 9. d5 {[%clk 0:02:51.1]} 9... Rg8 {[%clk
0:02:09.2]} 10. Qe3 {[%clk 0:02:49]} 10... f5 {[%clk 0:01:49.6]} 11. O-O {[%clk
0:02:43.6]} 11... Nd7 {[%clk 0:01:48.2]} 12. Nd4 {[%clk 0:02:42]} 12... Bxg2
{[%clk 0:01:45.4]} 13. Kxg2 {[%clk 0:02:42]} 13... Nc5 {[%clk 0:01:20.6]} 14. b4
{[%clk 0:02:40.3]} 14... Ne4 {[%clk 0:01:20.5]} 15. f3 {[%clk 0:02:37.9]} 15...
Nf6 {[%clk 0:01:20.3]} 16. Nc6 {[%clk 0:02:34.3]} 16... Qd7 {[%clk 0:01:18.1]}
17. b5 {[%clk 0:02:32.3]} 17... Bg7 {[%clk 0:01:07.3]} 18. Bb2 {[%clk
0:02:30.2]} 18... Kf7 {[%clk 0:01:07.4]} 19. Nd4 {[%clk 0:02:21.7]} 19... Rge8
{[%clk 0:01:03.3]} 20. Ne6 {[%clk 0:02:20.3]} 20... Nxd5 {[%clk 0:00:41.7]} 21.
cxd5 {[%clk 0:02:13]} 21... Bxb2 {[%clk 0:00:41.8]} 22. Qh6 {[%clk 0:02:03.4]}
22... Rg8 {[%clk 0:00:12.5]} 23. Rab1 {[%clk 0:01:51.5]} 23... Qxb5 {[%clk
0:00:10.3]} 24. Qd2 {[%clk 0:01:50.6]} 24... Bc3 {[%clk 0:00:05.1]} 25. Qxc3
{[%clk 0:01:50]} 25... Qxd5 {[%clk 0:00:05.5]} 26. Nxc7 {[%clk 0:01:49.2]} 26...
Rac8 {[%clk 0:00:03.2]} 27. Nxd5 {[%clk 0:01:49]} 1-0